[Event "Late-Titled-Tuesday-Blitz-March-05-2024"]
[Site "Chess.com"]
[Date "2024.03.05"]
[Round "5"]
[White "esrosenberg"]
[Black "averageFM"]
[Result "0-1"]
[WhiteElo "2446"]
[BlackElo "2589"]
[TimeControl "180+1"]
[EndTime "14:54:40 PST"]
[Termination "averageFM won by checkmate"]

1. d4 {[%clk 0:03:00.9]} 1... Nf6 {[%clk 0:02:58.5]} 2. c4 {[%clk 0:03:01.5]}
2... e6 {[%clk 0:02:58.2]} 3. Nc3 {[%clk 0:03:02]} 3... Bb4 {[%clk 0:02:57]} 4.
Nf3 {[%clk 0:03:02.7]} 4... O-O {[%clk 0:02:55.8]} 5. Bg5 {[%clk 0:03:02.4]}
5... h6 {[%clk 0:02:52.1]} 6. Bh4 {[%clk 0:03:02.3]} 6... d5 {[%clk 0:02:52.2]}
7. e3 {[%clk 0:03:01.6]} 7... g5 {[%clk 0:02:47.7]} 8. Bg3 {[%clk 0:03:01.3]}
8... Ne4 {[%clk 0:02:47.2]} 9. Qc2 {[%clk 0:02:58.8]} 9... c5 {[%clk 0:02:42.4]}
10. Bd3 {[%clk 0:02:54.5]} 10... f5 {[%clk 0:02:36.7]} 11. Bxb8 {[%clk
0:02:53.1]} 11... Rxb8 {[%clk 0:02:35.2]} 12. O-O {[%clk 0:02:52.5]} 12... cxd4
{[%clk 0:02:28.5]} 13. exd4 {[%clk 0:02:47]} 13... Nxc3 {[%clk 0:02:25.4]} 14.
bxc3 {[%clk 0:02:47]} 14... Bd6 {[%clk 0:02:25.3]} 15. Rae1 {[%clk 0:02:38]}
15... Qf6 {[%clk 0:02:10.6]} 16. Ne5 {[%clk 0:02:35.9]} 16... Qg7 {[%clk
0:01:57.4]} 17. f4 {[%clk 0:02:32.1]} 17... b6 {[%clk 0:01:55]} 18. cxd5 {[%clk
0:02:28.2]} 18... exd5 {[%clk 0:01:38.4]} 19. fxg5 {[%clk 0:02:18.1]} 19... Qxg5
{[%clk 0:01:38.2]} 20. Rf3 {[%clk 0:02:10.1]} 20... f4 {[%clk 0:01:30.5]} 21.
Ng6 {[%clk 0:01:37.6]} 21... Rd8 {[%clk 0:01:24.3]} 22. h4 {[%clk 0:01:36.2]}
22... Qh5 {[%clk 0:01:18]} 23. Ne7+ {[%clk 0:01:35.3]} 23... Bxe7 {[%clk
0:01:10.3]} 24. Rxe7 {[%clk 0:01:36.2]} 24... Qxh4 {[%clk 0:01:08.4]} 25. Bh7+
{[%clk 0:01:25]} 25... Kh8 {[%clk 0:01:03.7]} 26. Qe2 {[%clk 0:01:25.2]} 26...
Qg5 {[%clk 0:00:44.8]} 27. Rxa7 {[%clk 0:01:13.7]} 27... Bg4 {[%clk 0:00:41.6]}
28. Bf5 {[%clk 0:00:34.6]} 28... Re8 {[%clk 0:00:30.6]} 29. Rh7+ {[%clk
0:00:20.2]} 29... Kg8 {[%clk 0:00:29.9]} 30. Qb5 {[%clk 0:00:06.3]} 30... Bxf3
{[%clk 0:00:24]} 31. Bh3 {[%clk 0:00:03.2]} 31... Re1+ {[%clk 0:00:21.6]} 32.
Kf2 {[%clk 0:00:03.4]} 32... Qg3# {[%clk 0:00:21.4]} 0-1

[Event "Late-Titled-Tuesday-Blitz-March-05-2024"]
[Site "Chess.com"]
[Date "2024.03.05"]
[Round "5"]
[White "Slovak_fighter2000"]
[Black "sergiochess83"]
[Result "1-0"]
[WhiteElo "2646"]
[BlackElo "2844"]
[TimeControl "180+1"]
[EndTime "14:54:43 PST"]
[Termination "Slovak_fighter2000 won by resignation"]

1. c4 {[%clk 0:02:59]} 1... g6 {[%clk 0:02:56.6]} 2. d4 {[%clk 0:02:58.5]} 2...
Nf6 {[%clk 0:02:56.1]} 3. Nf3 {[%clk 0:02:57.8]} 3... Bg7 {[%clk 0:02:55.8]} 4.
g3 {[%clk 0:02:58.3]} 4... O-O {[%clk 0:02:55.2]} 5. Bg2 {[%clk 0:02:58.7]} 5...
d6 {[%clk 0:02:55.8]} 6. O-O {[%clk 0:02:59]} 6... Nbd7 {[%clk 0:02:55.3]} 7.
Nc3 {[%clk 0:02:59.5]} 7... e5 {[%clk 0:02:53.6]} 8. Qc2 {[%clk 0:02:59.8]} 8...
Re8 {[%clk 0:02:52.8]} 9. Rd1 {[%clk 0:02:55.5]} 9... h6 {[%clk 0:02:35.3]} 10.
dxe5 {[%clk 0:02:51.6]} 10... dxe5 {[%clk 0:02:33.8]} 11. Nd2 {[%clk 0:02:40.4]}
11... Qe7 {[%clk 0:02:20.2]} 12. Nd5 {[%clk 0:02:35.2]} 12... Nxd5 {[%clk
0:02:18.4]} 13. cxd5 {[%clk 0:02:36.1]} 13... Nb6 {[%clk 0:02:13.8]} 14. e4
{[%clk 0:02:32]} 14... Bg4 {[%clk 0:01:55.5]} 15. f3 {[%clk 0:02:26]} 15... Bd7
{[%clk 0:01:55.5]} 16. Nb3 {[%clk 0:02:18.2]} 16... Ba4 {[%clk 0:01:43.6]} 17.
Be3 {[%clk 0:02:15.3]} 17... c6 {[%clk 0:01:29.4]} 18. d6 {[%clk 0:02:03.9]}
18... Qe6 {[%clk 0:01:29.4]} 19. Qd3 {[%clk 0:02:02.4]} 19... Nd7 {[%clk
0:01:08.7]} 20. Rd2 {[%clk 0:01:54.7]} 20... b6 {[%clk 0:01:05.6]} 21. Bf1
{[%clk 0:01:40.1]} 21... Red8 {[%clk 0:01:00.8]} 22. Qc4 {[%clk 0:01:37.9]}
22... Qxc4 {[%clk 0:00:43.6]} 23. Bxc4 {[%clk 0:01:38.8]} 23... Bf8 {[%clk
0:00:39.8]} 24. Rc1 {[%clk 0:01:27.7]} 24... Kg7 {[%clk 0:00:36.6]} 25. Na1
{[%clk 0:01:16.9]} 25... c5 {[%clk 0:00:31.2]} 26. b3 {[%clk 0:01:13.6]} 26...
Bc6 {[%clk 0:00:30.7]} 27. Rcd1 {[%clk 0:01:09.8]} 27... Rac8 {[%clk 0:00:24.8]}
28. Ba6 {[%clk 0:01:08.4]} 28... Rb8 {[%clk 0:00:24.7]} 29. a4 {[%clk
0:01:02.7]} 29... f5 {[%clk 0:00:23]} 30. exf5 {[%clk 0:00:56.4]} 30... gxf5
{[%clk 0:00:21.5]} 31. Kf2 {[%clk 0:00:56.6]} 31... Nf6 {[%clk 0:00:16.7]} 32.
Bd3 {[%clk 0:00:46.4]} 32... e4 {[%clk 0:00:16.3]} 33. Be2 {[%clk 0:00:46.7]}
33... Rb7 {[%clk 0:00:15]} 34. Bf4 {[%clk 0:00:41.4]} 34... exf3 {[%clk
0:00:11.9]} 35. Bxf3 {[%clk 0:00:42.3]} 35... Bxf3 {[%clk 0:00:11.9]} 36. Kxf3
{[%clk 0:00:43.2]} 36... Ne4 {[%clk 0:00:12.5]} 37. Rd5 {[%clk 0:00:38.8]} 37...
Rf7 {[%clk 0:00:08.9]} 38. g4 {[%clk 0:00:34.3]} 38... Nc3 {[%clk 0:00:05.9]}
39. Be5+ {[%clk 0:00:34.1]} 1-0

[Event "Late-Titled-Tuesday-Blitz-March-05-2024"]
[Site "Chess.com"]
[Date "2024.03.05"]
[Round "5"]
[White "VladimirKramnik"]
[Black "kids2010"]
[Result "1-0"]
[WhiteElo "2976"]
[BlackElo "2804"]
[TimeControl "180+1"]
[EndTime "14:54:46 PST"]
[Termination "VladimirKramnik won by checkmate"]

1. c4 {[%clk 0:03:00.9]} 1... e5 {[%clk 0:02:59.4]} 2. d3 {[%clk 0:03:00.3]}
2... Nc6 {[%clk 0:02:56.9]} 3. Nf3 {[%clk 0:03:00]} 3... f5 {[%clk 0:02:56.7]}
4. Nc3 {[%clk 0:02:59]} 4... Nf6 {[%clk 0:02:56.6]} 5. g3 {[%clk 0:02:56.4]}
5... Be7 {[%clk 0:02:46.4]} 6. Bg2 {[%clk 0:02:55.4]} 6... O-O {[%clk
0:02:45.7]} 7. O-O {[%clk 0:02:54.6]} 7... d6 {[%clk 0:02:45.9]} 8. Rb1 {[%clk
0:02:51.9]} 8... Qe8 {[%clk 0:02:44.4]} 9. b4 {[%clk 0:02:51.3]} 9... Qh5 {[%clk
0:02:30]} 10. b5 {[%clk 0:02:50.1]} 10... Nd8 {[%clk 0:02:26.5]} 11. Nd5 {[%clk
0:02:38.3]} 11... Nxd5 {[%clk 0:02:21.1]} 12. cxd5 {[%clk 0:02:38.8]} 12... f4
{[%clk 0:02:20.7]} 13. Qc2 {[%clk 0:02:34.3]} 13... Bh3 {[%clk 0:01:47.5]} 14.
Qxc7 {[%clk 0:02:24.4]} 14... Rf7 {[%clk 0:01:47.6]} 15. Ba3 {[%clk 0:02:05.8]}
15... g5 {[%clk 0:01:32.7]} 16. Bxd6 {[%clk 0:01:53]} 16... Rc8 {[%clk
0:01:32.3]} 17. Qxe7 {[%clk 0:01:48.5]} 17... Rxe7 {[%clk 0:01:31.2]} 18. Bxe7
{[%clk 0:01:48.8]} 18... Nf7 {[%clk 0:01:27.4]} 19. Rbc1 {[%clk 0:01:22.7]}
19... h6 {[%clk 0:01:04.1]} 20. d6 {[%clk 0:01:13.3]} 20... Rxc1 {[%clk
0:00:52]} 21. Rxc1 {[%clk 0:01:13.1]} 21... Bxg2 {[%clk 0:00:43.6]} 22. Kxg2
{[%clk 0:01:12.9]} 22... Qg6 {[%clk 0:00:43.3]} 23. d7 {[%clk 0:01:05.6]} 23...
Qe6 {[%clk 0:00:38.1]} 24. Rc8+ {[%clk 0:00:52.1]} 24... Kh7 {[%clk 0:00:33.2]}
25. Rf8 {[%clk 0:00:49.2]} 25... Qxd7 {[%clk 0:00:29.4]} 26. Rxf7+ {[%clk
0:00:48.6]} 26... Kg8 {[%clk 0:00:30.3]} 27. Rf8+ {[%clk 0:00:48.7]} 27... Kg7
{[%clk 0:00:30.5]} 28. Ba3 {[%clk 0:00:42.9]} 28... g4 {[%clk 0:00:30.4]} 29.
Nh4 {[%clk 0:00:28.7]} 29... Qd5+ {[%clk 0:00:30.4]} 30. Kg1 {[%clk 0:00:27.9]}
30... Qxa2 {[%clk 0:00:30.8]} 31. Nf5+ {[%clk 0:00:20.7]} 31... Kg6 {[%clk
0:00:27.1]} 32. Be7 {[%clk 0:00:14.1]} 32... Qxe2 {[%clk 0:00:21.1]} 33. Rf6+
{[%clk 0:00:10.8]} 33... Kh7 {[%clk 0:00:21.4]} 34. Rf7+ {[%clk 0:00:04.3]}
34... Kg8 {[%clk 0:00:20.7]} 35. Nxh6+ {[%clk 0:00:03.3]} 35... Kh8 {[%clk
0:00:19.4]} 36. Bf6# {[%clk 0:00:03.6]} 1-0

[Event "Late-Titled-Tuesday-Blitz-March-05-2024"]
[Site "Chess.com"]
[Date "2024.03.05"]
[Round "5"]
[White "ninguno46"]
[Black "GAO"]
[Result "0-1"]
[WhiteElo "2507"]
[BlackElo "2315"]
[TimeControl "180+1"]
[EndTime "14:54:46 PST"]
[Termination "GAO won on time"]

1. e4 {[%clk 0:02:59.5]} 1... c5 {[%clk 0:03:00.3]} 2. Nc3 {[%clk 0:02:58.8]}
2... Nc6 {[%clk 0:03:00]} 3. f4 {[%clk 0:02:59.3]} 3... g6 {[%clk 0:02:59.7]} 4.
Nf3 {[%clk 0:02:59.8]} 4... Bg7 {[%clk 0:03:00.2]} 5. Bb5 {[%clk 0:03:00.2]}
5... Nd4 {[%clk 0:02:59.9]} 6. O-O {[%clk 0:03:00.2]} 6... e6 {[%clk 0:02:59.3]}
7. Nxd4 {[%clk 0:02:56.9]} 7... cxd4 {[%clk 0:02:59.1]} 8. Ne2 {[%clk 0:02:57]}
8... Ne7 {[%clk 0:02:59.2]} 9. d3 {[%clk 0:02:56.5]} 9... O-O {[%clk 0:02:57.6]}
10. Ba4 {[%clk 0:02:56.7]} 10... a6 {[%clk 0:02:53.7]} 11. Bb3 {[%clk
0:02:56.2]} 11... b5 {[%clk 0:02:53.9]} 12. Kh1 {[%clk 0:02:54.3]} 12... Bb7
{[%clk 0:02:54.4]} 13. Ng1 {[%clk 0:02:54.3]} 13... f5 {[%clk 0:02:50.1]} 14.
Qe2 {[%clk 0:02:49.7]} 14... Qc7 {[%clk 0:02:40.3]} 15. Nf3 {[%clk 0:02:43]}
15... Rac8 {[%clk 0:02:26.7]} 16. a4 {[%clk 0:02:39.6]} 16... Bc6 {[%clk
0:02:19]} 17. axb5 {[%clk 0:02:37.9]} 17... axb5 {[%clk 0:02:14.1]} 18. Bd2
{[%clk 0:02:33]} 18... Qb7 {[%clk 0:02:12.2]} 19. e5 {[%clk 0:02:24.3]} 19...
Bd5 {[%clk 0:02:01.1]} 20. Nxd4 {[%clk 0:01:57.2]} 20... Bxb3 {[%clk 0:01:57.5]}
21. cxb3 {[%clk 0:01:53.6]} 21... Qd5 {[%clk 0:01:50.9]} 22. Bb4 {[%clk
0:01:26.1]} 22... Rf7 {[%clk 0:01:35]} 23. Bxe7 {[%clk 0:01:20.7]} 23... Rxe7
{[%clk 0:01:34.8]} 24. Nf3 {[%clk 0:01:06.3]} 24... Qxb3 {[%clk 0:01:30.9]} 25.
Rac1 {[%clk 0:01:05.3]} 25... Ree8 {[%clk 0:01:29.3]} 26. Qd2 {[%clk 0:00:51.5]}
26... h6 {[%clk 0:01:24.4]} 27. h3 {[%clk 0:00:50.5]} 27... Kh7 {[%clk
0:01:20.9]} 28. Rc3 {[%clk 0:00:35.5]} 28... Qd5 {[%clk 0:01:16.4]} 29. Rfc1
{[%clk 0:00:34]} 29... Rxc3 {[%clk 0:01:16.6]} 30. Rxc3 {[%clk 0:00:33.8]} 30...
d6 {[%clk 0:01:17]} 31. Rc7 {[%clk 0:00:31.8]} 31... dxe5 {[%clk 0:01:13.6]} 32.
Nxe5 {[%clk 0:00:25.1]} 32... Qd6 {[%clk 0:00:54.3]} 33. Rd7 {[%clk 0:00:23]}
33... Qc5 {[%clk 0:00:44.8]} 34. d4 {[%clk 0:00:20.1]} 34... Qb6 {[%clk
0:00:40.6]} 35. Qc3 {[%clk 0:00:18.4]} 35... Rd8 {[%clk 0:00:37.5]} 36. Qg3
{[%clk 0:00:11.2]} 36... g5 {[%clk 0:00:33]} 37. Rxd8 {[%clk 0:00:05]} 37...
Qxd8 {[%clk 0:00:32.3]} 38. fxg5 {[%clk 0:00:05.5]} 38... Qxg5 {[%clk
0:00:30.9]} 39. Qe1 {[%clk 0:00:01.1]} 39... Qf4 {[%clk 0:00:26.5]} 0-1

[Event "Late-Titled-Tuesday-Blitz-March-05-2024"]
[Site "Chess.com"]
[Date "2024.03.05"]
[Round "5"]
[White "Perecke"]
[Black "janhelmer03"]
[Result "1-0"]
[WhiteElo "2546"]
[BlackElo "2402"]
[TimeControl "180+1"]
[EndTime "14:54:48 PST"]
[Termination "Perecke won by resignation"]

1. e4 {[%clk 0:02:13.6]} 1... c5 {[%clk 0:02:55]} 2. Nf3 {[%clk 0:02:13.8]} 2...
d6 {[%clk 0:02:48.3]} 3. d4 {[%clk 0:02:13.7]} 3... cxd4 {[%clk 0:02:46]} 4.
Nxd4 {[%clk 0:02:14.6]} 4... Nf6 {[%clk 0:02:46.6]} 5. Nc3 {[%clk 0:02:14.6]}
5... g6 {[%clk 0:02:47.3]} 6. Be3 {[%clk 0:02:14]} 6... Bg7 {[%clk 0:02:47.8]}
7. f3 {[%clk 0:02:13.6]} 7... O-O {[%clk 0:02:48.4]} 8. Qd2 {[%clk 0:02:14]}
8... Nc6 {[%clk 0:02:48.3]} 9. O-O-O {[%clk 0:02:14.1]} 9... d5 {[%clk
0:02:48.4]} 10. exd5 {[%clk 0:02:13.5]} 10... Nxd5 {[%clk 0:02:17.8]} 11. Nxc6
{[%clk 0:02:13.1]} 11... bxc6 {[%clk 0:02:16.5]} 12. Bd4 {[%clk 0:02:13.1]}
12... Nxc3 {[%clk 0:01:34.8]} 13. Qxc3 {[%clk 0:02:13]} 13... Bxd4 {[%clk
0:01:31.6]} 14. Rxd4 {[%clk 0:02:13.9]} 14... Qb6 {[%clk 0:01:30.2]} 15. h4
{[%clk 0:02:10.6]} 15... e5 {[%clk 0:01:18.9]} 16. Rb4 {[%clk 0:01:51.1]} 16...
Qa5 {[%clk 0:01:08.2]} 17. a3 {[%clk 0:01:49.8]} 17... Be6 {[%clk 0:00:51.1]}
18. h5 {[%clk 0:01:48]} 18... Qc7 {[%clk 0:00:14]} 19. Bc4 {[%clk 0:01:21.4]}
19... Bxc4 {[%clk 0:00:07]} 20. Rxc4 {[%clk 0:01:22.3]} 20... Rac8 {[%clk
0:00:06.3]} 21. Rch4 {[%clk 0:01:07.4]} 21... g5 {[%clk 0:00:05.7]} 22. Rc4
{[%clk 0:00:52.8]} 22... h6 {[%clk 0:00:03.4]} 23. Qd3 {[%clk 0:00:46.1]} 23...
Qe7 {[%clk 0:00:01.7]} 24. Re1 {[%clk 0:00:44.2]} 24... f6 {[%clk 0:00:01.6]}
25. Qe4 {[%clk 0:00:41.3]} 25... Qf7 {[%clk 0:00:01.4]} 26. g4 {[%clk
0:00:38.5]} 26... f5 {[%clk 0:00:01.4]} 27. gxf5 {[%clk 0:00:34.7]} 27... Qxf5
{[%clk 0:00:02.3]} 28. Qxe5 {[%clk 0:00:33.5]} 28... Qxe5 {[%clk 0:00:02.6]} 29.
Rxe5 {[%clk 0:00:34]} 29... Rxf3 {[%clk 0:00:03.3]} 30. Re6 {[%clk 0:00:34.4]}
30... Rd8 {[%clk 0:00:01.5]} 31. b3 {[%clk 0:00:31.8]} 31... Rf1+ {[%clk
0:00:01.5]} 32. Kb2 {[%clk 0:00:31.9]} 32... Rf7 {[%clk 0:00:02.2]} 33. Rxh6
{[%clk 0:00:30.9]} 33... Rg7 {[%clk 0:00:03.1]} 34. Rcxc6 {[%clk 0:00:30.5]}
34... g4 {[%clk 0:00:03.6]} 35. Rhg6 {[%clk 0:00:30.8]} 35... Rd5 {[%clk
0:00:02.1]} 36. h6 {[%clk 0:00:29.8]} 36... Rxg6 {[%clk 0:00:01.9]} 37. Rxg6+
{[%clk 0:00:30.7]} 37... Kh7 {[%clk 0:00:02.8]} 38. Rxg4 {[%clk 0:00:31.3]}
38... Kxh6 {[%clk 0:00:02.8]} 39. c4 {[%clk 0:00:30.2]} 39... Rd7 {[%clk
0:00:03.7]} 40. b4 {[%clk 0:00:30.3]} 40... Kh5 {[%clk 0:00:04.4]} 41. Rg1
{[%clk 0:00:30.2]} 41... Rd3 {[%clk 0:00:02.8]} 42. Rg7 {[%clk 0:00:29.7]} 1-0

[Event "Late-Titled-Tuesday-Blitz-March-05-2024"]
[Site "Chess.com"]
[Date "2024.03.05"]
[Round "5"]
[White "LiemLe"]
[Black "GoltsevDmitry2000"]
[Result "1-0"]
[WhiteElo "3053"]
[BlackElo "2701"]
[TimeControl "180+1"]
[EndTime "14:54:53 PST"]
[Termination "LiemLe won on time"]

1. d4 {[%clk 0:03:00.9]} 1... e6 {[%clk 0:02:58]} 2. c4 {[%clk 0:03:01.1]} 2...
d5 {[%clk 0:02:56.7]} 3. Nc3 {[%clk 0:03:00.5]} 3... Nf6 {[%clk 0:02:56.6]} 4.
cxd5 {[%clk 0:03:00.6]} 4... exd5 {[%clk 0:02:56.7]} 5. Bg5 {[%clk 0:03:00.5]}
5... c6 {[%clk 0:02:57.3]} 6. e3 {[%clk 0:03:00.8]} 6... h6 {[%clk 0:02:56.7]}
7. Bh4 {[%clk 0:03:00.7]} 7... Bf5 {[%clk 0:02:57.2]} 8. Qf3 {[%clk 0:02:58]}
8... Bg6 {[%clk 0:02:56]} 9. Bxf6 {[%clk 0:02:58.5]} 9... Qxf6 {[%clk
0:02:55.8]} 10. Qxf6 {[%clk 0:02:59.1]} 10... gxf6 {[%clk 0:02:56.5]} 11. Nf3
{[%clk 0:02:53.4]} 11... Nd7 {[%clk 0:02:55.7]} 12. Nh4 {[%clk 0:02:53.5]} 12...
Bd6 {[%clk 0:02:52.5]} 13. Ne2 {[%clk 0:02:39.6]} 13... Bb4+ {[%clk 0:02:49.1]}
14. Kd1 {[%clk 0:02:38.8]} 14... O-O-O {[%clk 0:02:45.3]} 15. Nf4 {[%clk
0:02:31.2]} 15... Rhg8 {[%clk 0:02:41.8]} 16. Bd3 {[%clk 0:02:30.7]} 16... Nf8
{[%clk 0:02:36]} 17. Bf5+ {[%clk 0:02:25]} 17... Kb8 {[%clk 0:02:30]} 18. g4
{[%clk 0:02:16.6]} 18... Bxf5 {[%clk 0:02:23.2]} 19. Nxf5 {[%clk 0:02:14.2]}
19... Rxg4 {[%clk 0:02:22.5]} 20. Nxh6 {[%clk 0:02:14.7]} 20... Rh4 {[%clk
0:02:20.3]} 21. Nf5 {[%clk 0:02:09.8]} 21... Rh7 {[%clk 0:02:18.4]} 22. h4
{[%clk 0:01:49]} 22... Ng6 {[%clk 0:02:14.2]} 23. h5 {[%clk 0:01:44.9]} 23...
Nxf4 {[%clk 0:02:06.9]} 24. exf4 {[%clk 0:01:45.8]} 24... Rdh8 {[%clk
0:02:07.3]} 25. Ng3 {[%clk 0:01:32]} 25... Bd6 {[%clk 0:01:39.5]} 26. Rh4 {[%clk
0:01:31.2]} 26... f5 {[%clk 0:01:32.4]} 27. Ke2 {[%clk 0:01:24.8]} 27... Be7
{[%clk 0:01:23.9]} 28. Rh3 {[%clk 0:01:24.3]} 28... Bf6 {[%clk 0:01:23.8]} 29.
Kd3 {[%clk 0:01:22.8]} 29... b6 {[%clk 0:01:13.2]} 30. Rah1 {[%clk 0:01:14.4]}
30... c5 {[%clk 0:01:06.3]} 31. Nxf5 {[%clk 0:01:11.1]} 31... c4+ {[%clk
0:01:05.5]} 32. Kc3 {[%clk 0:01:10.6]} 32... Re8 {[%clk 0:01:00.3]} 33. Re3
{[%clk 0:01:09.4]} 33... Re6 {[%clk 0:00:49.5]} 34. h6 {[%clk 0:01:07]} 34...
Kc7 {[%clk 0:00:47]} 35. Rhe1 {[%clk 0:00:55.6]} 35... Kd7 {[%clk 0:00:44.3]}
36. a4 {[%clk 0:00:52.7]} 36... a6 {[%clk 0:00:39.8]} 37. b3 {[%clk 0:00:52.5]}
37... b5 {[%clk 0:00:34.8]} 38. axb5 {[%clk 0:00:52.3]} 38... axb5 {[%clk
0:00:35.2]} 39. Ra1 {[%clk 0:00:52.9]} 39... Rb6 {[%clk 0:00:12.2]} 40. Ra7+
{[%clk 0:00:51.5]} 40... Kd8 {[%clk 0:00:11.8]} 41. Rg3 {[%clk 0:00:39.9]} 41...
Rh8 {[%clk 0:00:07.4]} 42. h7 {[%clk 0:00:33.4]} 42... b4+ {[%clk 0:00:04.3]}
43. Kc2 {[%clk 0:00:33.8]} 43... Bg5 {[%clk 0:00:01.6]} 44. Rxg5 {[%clk
0:00:33.1]} 44... Rg6 {[%clk 0:00:01.8]} 45. Ra8+ {[%clk 0:00:31.4]} 1-0

[Event "Late-Titled-Tuesday-Blitz-March-05-2024"]
[Site "Chess.com"]
[Date "2024.03.05"]
[Round "5"]
[White "prochn"]
[Black "kalxandria"]
[Result "1/2-1/2"]
[WhiteElo "2438"]
[BlackElo "2203"]
[TimeControl "180+1"]
[EndTime "14:54:55 PST"]
[Termination "Game drawn by repetition"]

1. d4 {[%clk 0:03:00.9]} 1... Nf6 {[%clk 0:02:58.6]} 2. c4 {[%clk 0:03:01.1]}
2... e6 {[%clk 0:02:58.5]} 3. g3 {[%clk 0:03:01.4]} 3... d5 {[%clk 0:02:57.3]}
4. Bg2 {[%clk 0:03:01.6]} 4... Be7 {[%clk 0:02:55.2]} 5. Nf3 {[%clk 0:03:01.8]}
5... O-O {[%clk 0:02:52.4]} 6. O-O {[%clk 0:03:01.7]} 6... c6 {[%clk 0:02:51.6]}
7. Qc2 {[%clk 0:02:54.5]} 7... b6 {[%clk 0:02:49.6]} 8. Ne5 {[%clk 0:02:48.8]}
8... Bb7 {[%clk 0:02:45.1]} 9. Rd1 {[%clk 0:02:34.5]} 9... Nbd7 {[%clk
0:02:41.6]} 10. Nd2 {[%clk 0:02:28.8]} 10... Rc8 {[%clk 0:02:39.5]} 11. e4
{[%clk 0:02:15.3]} 11... c5 {[%clk 0:02:37.1]} 12. exd5 {[%clk 0:01:59.4]} 12...
exd5 {[%clk 0:02:30.3]} 13. Qa4 {[%clk 0:01:08.7]} 13... cxd4 {[%clk 0:02:21.9]}
14. Nxd7 {[%clk 0:01:05.4]} 14... Qxd7 {[%clk 0:02:19.5]} 15. Qxd7 {[%clk
0:01:01.4]} 15... Nxd7 {[%clk 0:02:18.8]} 16. cxd5 {[%clk 0:01:01.9]} 16... Nf6
{[%clk 0:02:02.1]} 17. Nb3 {[%clk 0:01:01.6]} 17... Bxd5 {[%clk 0:01:58.2]} 18.
Nxd4 {[%clk 0:00:58]} 18... Bxg2 {[%clk 0:01:56.9]} 19. Kxg2 {[%clk 0:00:58.9]}
19... Rfd8 {[%clk 0:01:55.2]} 20. Bg5 {[%clk 0:00:32.2]} 20... h6 {[%clk
0:01:50.9]} 21. Nf5 {[%clk 0:00:31.5]} 21... Rxd1 {[%clk 0:01:15.7]} 22. Rxd1
{[%clk 0:00:32.4]} 22... Bd8 {[%clk 0:01:09.6]} 23. Bf4 {[%clk 0:00:17.5]} 23...
Ne4 {[%clk 0:00:59.5]} 24. Rd7 {[%clk 0:00:13.7]} 24... Bf6 {[%clk 0:00:57.1]}
25. b3 {[%clk 0:00:12.2]} 25... Rc2 {[%clk 0:00:55.1]} 26. Rxa7 {[%clk 0:00:07]}
26... Rxf2+ {[%clk 0:00:53.7]} 27. Kg1 {[%clk 0:00:07.3]} 27... Rc2 {[%clk
0:00:32.5]} 28. Ne7+ {[%clk 0:00:07]} 28... Kh7 {[%clk 0:00:30.6]} 29. Be3
{[%clk 0:00:07.3]} 29... Bg5 {[%clk 0:00:22]} 30. Bxb6 {[%clk 0:00:05.2]} 30...
Nd2 {[%clk 0:00:21.4]} 31. Nd5 {[%clk 0:00:02.5]} 31... Nf3+ {[%clk 0:00:21.1]}
32. Kf1 {[%clk 0:00:02.3]} 32... Nxh2+ {[%clk 0:00:20.2]} 33. Ke1 {[%clk
0:00:02.6]} 33... Nf3+ {[%clk 0:00:20.6]} 34. Kf1 {[%clk 0:00:02.6]} 34... Nh2+
{[%clk 0:00:15.2]} 35. Ke1 {[%clk 0:00:03]} 35... Nf3+ {[%clk 0:00:15.8]} 36.
Kf1 {[%clk 0:00:03.5]} 36... Nh2+ {[%clk 0:00:10.7]} 1/2-1/2

[Event "Late-Titled-Tuesday-Blitz-March-05-2024"]
[Site "Chess.com"]
[Date "2024.03.05"]
[Round "5"]
[White "Zampronha1971"]
[Black "Penafiel-Josselyne02"]
[Result "0-1"]
[WhiteElo "2332"]
[BlackElo "2066"]
[TimeControl "180+1"]
[EndTime "14:54:56 PST"]
[Termination "Penafiel-Josselyne02 won by checkmate"]

1. e4 {[%clk 0:03:00.9]} 1... c5 {[%clk 0:02:48.9]} 2. Nf3 {[%clk 0:03:01.2]}
2... d6 {[%clk 0:02:49]} 3. d4 {[%clk 0:03:01.7]} 3... cxd4 {[%clk 0:02:49.4]}
4. Nxd4 {[%clk 0:03:02.6]} 4... Nf6 {[%clk 0:02:49.9]} 5. Nc3 {[%clk 0:03:02.8]}
5... Nc6 {[%clk 0:02:50.3]} 6. Bg5 {[%clk 0:03:02.5]} 6... Bd7 {[%clk
0:02:50.6]} 7. Qd2 {[%clk 0:03:01.3]} 7... Nxd4 {[%clk 0:02:50.7]} 8. Qxd4
{[%clk 0:03:00.8]} 8... Qa5 {[%clk 0:02:50.9]} 9. f4 {[%clk 0:02:58.1]} 9... Rc8
{[%clk 0:02:50.1]} 10. O-O-O {[%clk 0:02:52.4]} 10... h6 {[%clk 0:02:37.5]} 11.
Bxf6 {[%clk 0:02:51.7]} 11... gxf6 {[%clk 0:02:37.9]} 12. f5 {[%clk 0:02:39.3]}
12... Rg8 {[%clk 0:01:56.1]} 13. g3 {[%clk 0:02:19.7]} 13... h5 {[%clk
0:01:23.8]} 14. Be2 {[%clk 0:02:11.3]} 14... Rxc3 {[%clk 0:01:16.3]} 15. Qxc3
{[%clk 0:02:10]} 15... Qxa2 {[%clk 0:01:16.2]} 16. b3 {[%clk 0:02:07.2]} 16...
Bh6+ {[%clk 0:01:13.3]} 17. Rd2 {[%clk 0:01:58.3]} 17... Qa3+ {[%clk 0:00:49.7]}
18. Kb1 {[%clk 0:01:55.7]} 18... Bxd2 {[%clk 0:00:48.3]} 19. Qxd2 {[%clk
0:01:56.6]} 19... Bc6 {[%clk 0:00:45.9]} 20. Bf3 {[%clk 0:01:10.3]} 20... Qc5
{[%clk 0:00:35.4]} 21. Re1 {[%clk 0:01:08.1]} 21... a5 {[%clk 0:00:25.3]} 22.
Bxh5 {[%clk 0:01:03.3]} 22... a4 {[%clk 0:00:20.6]} 23. bxa4 {[%clk 0:00:58.2]}
23... Bxa4 {[%clk 0:00:20.1]} 24. Be2 {[%clk 0:00:50.9]} 24... Qb6+ {[%clk
0:00:14.1]} 25. Kc1 {[%clk 0:00:50]} 25... Qc5 {[%clk 0:00:13.2]} 26. Bd3 {[%clk
0:00:47.7]} 26... Rg4 {[%clk 0:00:11]} 27. Qe2 {[%clk 0:00:40.9]} 27... Qa3+
{[%clk 0:00:10.3]} 28. Kd1 {[%clk 0:00:38.6]} 28... Rg5 {[%clk 0:00:10.2]} 29.
g4 {[%clk 0:00:37.8]} 29... Qb2 {[%clk 0:00:06.1]} 30. h4 {[%clk 0:00:23.6]}
30... Rg8 {[%clk 0:00:05.8]} 31. Qf3 {[%clk 0:00:13.9]} 31... Qc3 {[%clk
0:00:05.4]} 32. Qe2 {[%clk 0:00:10.7]} 32... Rxg4 {[%clk 0:00:01.6]} 33. Qxg4
{[%clk 0:00:05.3]} 33... Qxd3+ {[%clk 0:00:01.6]} 34. Kc1 {[%clk 0:00:05.9]}
34... Qxc2# {[%clk 0:00:02.4]} 0-1